bitfinex-derivatives/quotes_BTCF0:USTF0_20260131
["timestamp","ask_amount","ask_price","bid_price","bid_amount"]
[1769872791155,0.01233,81225.0,81200.0,0.24915173]
[1769872792854,0.11221,81226.0,81200.0,0.26148573]
[1769872793059,0.012331,81220.0,81199.0,0.09988]
[1769872793452,0.28475492,81221.0,81199.0,0.09988]
[1769872793756,0.29999999,81219.0,81199.0,0.09988]
[1769872794147,0.012332,81214.0,81199.0,0.09988]
[1769872794562,0.09988,81215.0,81199.0,0.09988]
[1769872796252,0.001,81214.0,81199.0,0.09988]
[1769872796954,0.09988,81215.0,81199.0,0.09988]
[1769872797656,0.09988,81215.0,81199.0,0.112214]
[1769872797864,0.09988,81215.0,81199.0,0.09988]
[1769872799255,0.09988,81215.0,81160.0,0.24408901]
[1769872799256,0.3,81203.0,81160.0,0.24408901]
[1769872799453,0.012334,81201.0,81171.0,0.012338]
[1769872799652,0.312334,81201.0,81172.0,0.09988]
[1769872800657,0.3,81196.0,81172.0,0.09988]
[1769872800861,0.012334,81197.0,81172.0,0.09988]
[1769872801858,0.09988,81202.0,81172.0,0.09988]
[1769872802056,0.09988,81202.0,81173.0,0.012338]
[1769872802449,0.09988,81202.0,81172.0,0.09988]
[1769872802653,0.09988,81202.0,81178.0,0.012337]
[1769872803554,0.06857316,81218.0,81189.0,0.012335]
[1769872803758,0.21878204,81217.0,81190.0,0.09988]
[1769872803954,0.11890204,81216.0,81191.0,0.012335]
[1769872804159,0.012331,81221.0,81194.0,0.012335]
[1769872804354,0.012331,81219.0,81190.0,0.112215]
[1769872805354,0.09988,81220.0,81196.0,0.012334]
[1769872805664,0.01233,81226.0,81199.0,0.012334]
[1769872805868,0.11904336,81225.0,81200.0,0.09988]
[1769872806057,0.01233,81226.0,81200.0,0.09988]
[1769872806263,0.112209,81234.0,81209.0,0.012332]
[1769872806463,0.112209,81234.0,81210.0,0.09988]
[1769872806464,0.012329,81232.0,81210.0,0.09988]
[1769872806763,0.09988,81234.0,81211.0,0.09988]
[1769872807758,0.09988,81234.0,81211.0,0.112212]
[1769872808164,0.012327,81248.0,81218.0,0.012331]
[1769872808366,0.012327,81246.0,81218.0,0.012331]
[1769872808561,0.11893448,81245.0,81218.0,0.012331]
[1769872808764,0.012327,81246.0,81218.0,0.012331]
[1769872810265,0.012327,81246.0,81221.0,0.012331]
[1769872810566,0.012327,81246.0,81211.0,0.42572]
[1769872810567,0.012326,81250.0,81223.0,0.01233]
[1769872810770,0.012326,81250.0,81224.0,0.09988]
[1769872811066,0.012326,81250.0,81225.0,0.01233]
[1769872811660,0.3,81244.0,81224.0,0.09988]
[1769872811968,0.3,81235.0,81214.0,0.09988]
[1769872812171,0.412209,81234.0,81211.0,0.09988]
[1769872812369,0.09988,81233.0,81209.0,0.09988]
[1769872813466,0.012329,81231.0,81203.0,0.012333]
[1769872813677,0.3,81228.0,81199.0,0.012334]
[1769872813868,0.3,81226.0,81197.0,0.09988]
[1769872814866,0.3,81216.0,81197.0,0.09988]
[1769872815063,0.3,81214.0,81197.0,0.09988]
[1769872816372,0.3,81214.0,81183.0,0.012336]
[1769872816676,0.3,81214.0,81186.0,0.09988]
[1769872818072,0.09988,81215.0,81186.0,0.09988]
[1769872818576,0.09988,81215.0,81190.0,0.012335]
[1769872818774,0.3,81225.0,81201.0,0.012334]
[1769872818970,0.09988,81235.0,81207.0,0.012333]
[1769872819163,0.11864416,81234.0,81210.0,0.012332]
[1769872819362,0.11864416,81233.0,81211.0,0.09988]
[1769872819570,0.3,81240.0,81212.0,0.09988]
[1769872819771,0.11864708,81239.0,81213.0,0.09988]
[1769872819972,0.11864708,81238.0,81214.0,0.09988]
[1769872820171,0.11864708,81237.0,81215.0,0.09988]
[1769872820371,0.11864708,81236.0,81215.0,0.09988]
[1769872820567,0.3,81239.0,81215.0,0.09988]
[1769872820767,0.3,81237.0,81215.0,0.09988]
[1769872822177,0.06812507,81243.0,81224.0,0.01233]
[1769872822375,0.06812507,81243.0,81225.0,0.09988]
[1769872822681,0.3,81235.0,81207.0,0.012333]
[1769872822882,0.3,81235.0,81209.0,0.012332]
[1769872823179,0.312328,81242.0,81211.0,0.012332]
[1769872823377,0.3,81240.0,81211.0,0.012332]
[1769872823572,0.3,81234.0,81210.0,0.09988]
[1769872823772,0.3,81232.0,81210.0,0.09988]
[1769872824976,0.3,81230.0,81210.0,0.09988]
[1769872825875,0.09988,81237.0,81204.0,0.09988]
[1769872825876,0.3,81227.0,81204.0,0.09988]
[1769872826178,0.29793118,81225.0,81204.0,0.09988]
[1769872827382,0.29893118,81225.0,81204.0,0.09988]
[1769872827566,0.001,81225.0,81204.0,0.09988]
[1769872828173,0.09988,81226.0,81204.0,0.09988]
[1769872829479,0.09988,81226.0,81204.0,0.112213]
[1769872830577,0.09988,81226.0,81204.0,0.09988]
[1769872830786,0.29627388,81225.0,81204.0,0.09988]
[1769872831170,0.29627388,81223.0,81202.0,0.3248]
[1769872831375,0.09988,81226.0,81195.0,0.09988]
[1769872831376,0.29627388,81217.0,81195.0,0.09988]
[1769872831680,0.30860488,81217.0,81195.0,0.09988]
[1769872832074,0.29627388,81217.0,81195.0,0.09988]
[1769872833882,0.29727388,81217.0,81195.0,0.09988]
[1769872834478,0.06693175,81227.0,81195.0,0.09988]
[1769872834479,0.29659976,81210.0,81195.0,0.09988]
[1769872834675,0.29659976,81208.0,81183.0,0.09988]
[1769872835582,0.29659976,81208.0,81183.0,0.11008071]
[1769872835784,0.09988,81210.0,81190.0,0.01444652]
[1769872835976,0.09988,81210.0,81192.0,0.012335]
[1769872836177,0.09988,81210.0,81193.0,0.09988]
[1769872836484,0.09988,81210.0,81194.0,0.012335]
[1769872836683,0.30751449,81223.0,81193.0,0.09988]
[1769872836684,0.112211,81220.0,81193.0,0.09988]
[1769872836880,0.30751549,81218.0,81193.0,0.09988]
[1769872837078,0.29518449,81214.0,81193.0,0.09988]
[1769872837279,0.29518449,81212.0,81193.0,0.09988]
[1769872838288,0.29258954,81209.0,81182.0,0.09988]
[1769872838584,0.29258954,81205.0,81182.0,0.09988]
[1769872838787,0.09988,81209.0,81182.0,0.09988]
[1769872838788,0.29258954,81200.0,81182.0,0.09988]
[1769872838981,0.29258954,81198.0,81170.0,0.012338]
[1769872839181,0.29258954,81192.0,81161.0,0.01234]
[1769872839386,0.29258954,81190.0,81163.0,0.012339]
[1769872839576,0.30492554,81187.0,81162.0,0.3248]
[1769872841886,0.30492554,81187.0,81159.0,0.11222]
[1769872842188,0.30492554,81187.0,81159.0,0.09988]
[1769872842489,0.29150435,81184.0,81159.0,0.09988]
[1769872843083,0.29150435,81184.0,81160.0,0.01234]
[1769872844292,0.29107307,81180.0,81159.0,0.09988]
[1769872844685,0.12319519,81183.0,81159.0,0.09988]
[1769872844686,0.29107307,81178.0,81159.0,0.09988]
[1769872844894,0.29107307,81177.0,81159.0,0.09988]
[1769872845984,0.30341007,81177.0,81159.0,0.09988]
[1769872846388,0.29107307,81177.0,81159.0,0.09988]
[1769872846589,0.012336,81189.0,81162.0,0.02529446]
[1769872846784,0.012335,81191.0,81166.0,0.012339]
[1769872847093,0.29156851,81187.0,81162.0,0.01234]
[1769872847290,0.29156851,81185.0,81163.0,0.012339]
[1769872847490,0.12320126,81191.0,81160.0,0.02529446]
[1769872847691,0.30390351,81191.0,81166.0,0.012339]
[1769872847998,0.16716192,81192.0,81169.0,0.012339]
[1769872848388,0.16716192,81192.0,81169.0,0.09992]
[1769872848588,0.09992,81192.0,81173.0,0.012338]
[1769872848895,0.09992,81192.0,81170.0,0.02687921]
[1769872849491,0.29104026,81191.0,81169.0,0.09992]
[1769872849697,0.09992,81192.0,81169.0,0.09992]
[1769872850087,0.09992,81192.0,81174.0,0.012338]
[1769872851786,0.09992,81192.0,81170.0,0.012338]
[1769872851993,0.30049065,81190.0,81174.0,0.001]
[1769872852195,0.28815565,81186.0,81174.0,0.001]
[1769872852593,0.28815565,81186.0,81169.0,0.09992]
[1769872853493,0.30049065,81191.0,81169.0,0.09992]
[1769872853692,0.28815565,81191.0,81169.0,0.09992]
[1769872854094,0.28815565,81191.0,81174.0,0.012338]
[1769872854289,0.09992,81192.0,81171.0,0.03808808]
[1769872854494,0.001,81186.0,81179.0,0.012337]
[1769872854698,0.001,81186.0,81175.0,0.012338]
[1769872855292,0.09992,81192.0,81175.0,0.012338]
[1769872856904,0.0126172,81215.0,81175.0,0.012338]
[1769872856905,0.28783956,81204.0,81187.0,0.012336]
[1769872857106,0.28783956,81204.0,81183.0,0.012336]
[1769872857405,0.012333,81203.0,81183.0,0.012336]
[1769872857797,0.28783956,81204.0,81183.0,0.012336]
[1769872858304,0.30117256,81204.0,81183.0,0.012336]
[1769872858603,0.30270347,81201.0,81182.0,0.09992]
[1769872858800,0.29036947,81201.0,81182.0,0.09992]
[1769872859000,0.29036947,81201.0,81183.0,0.001]
[1769872859404,0.012334,81200.0,81183.0,0.001]
[1769872859598,0.30270347,81200.0,81183.0,0.001]
[1769872859804,0.29956312,81196.0,81183.0,0.001]
[1769872860405,0.09992,81206.0,81183.0,0.001]
[1769872860406,0.31189612,81204.0,81183.0,0.001]
[1769872860704,0.09992,81206.0,81188.0,0.012336]
[1769872861006,0.09992,81206.0,81184.0,0.012336]
[1769872861202,0.09992,81206.0,81187.0,0.012336]
[1769872861598,0.29956312,81205.0,81183.0,0.012336]
[1769872862102,0.3,81181.0,81144.0,0.24609965]
[1769872862306,0.312336,81190.0,81166.0,0.012339]
[1769872862501,0.012335,81194.0,81165.0,0.09992]
[1769872862803,0.3,81194.0,81174.0,0.012338]
[1769872863403,0.09992,81195.0,81177.0,0.012337]
[1769872863598,0.09992,81195.0,81180.0,0.012337]
[1769872864102,0.09992,81195.0,81183.0,0.012336]
[1769872864699,0.09992,81195.0,81179.0,0.012337]
[1769872865519,0.3,81209.0,81178.0,0.09992]
[1769872865704,0.012333,81208.0,81186.0,0.012336]
[1769872865907,0.312333,81205.0,81180.0,0.001]
[1769872866209,0.09992,81210.0,81180.0,0.001]
[1769872866210,0.3,81196.0,81180.0,0.001]
[1769872866810,0.012334,81203.0,81180.0,0.013337]
[1769872867010,0.012334,81203.0,81183.0,0.012336]
[1769872867606,0.3,81204.0,81178.0,0.10092]
[1769872867904,0.3,81204.0,81185.0,0.012336]
[1769872868100,0.06685268,81217.0,81178.0,0.10092]
[1769872868101,0.3,81212.0,81178.0,0.10092]
[1769872868305,0.3,81212.0,81178.0,0.09992]
[1769872868709,0.012332,81211.0,81178.0,0.09992]
[1769872869104,0.012332,81215.0,81196.0,0.012334]
[1769872869598,0.012331,81216.0,81196.0,0.012334]
[1769872869803,0.3,81219.0,81196.0,0.012334]
[1769872870400,0.3,81219.0,81199.0,0.012334]
[1769872871014,0.3,81235.0,81194.0,0.32488]
[1769872871197,0.3,81235.0,81200.0,0.12313906]
[1769872871397,0.3,81235.0,81216.0,0.012331]
[1769872871611,0.3,81235.0,81217.0,0.09992]
[1769872871811,0.3,81242.0,81218.0,0.012331]
[1769872872113,0.312328,81241.0,81218.0,0.012331]
[1769872873414,0.3,81237.0,81217.0,0.09992]
[1769872873715,0.3,81235.0,81217.0,0.09992]
[1769872874418,0.3,81235.0,81218.0,0.001]
[1769872874811,0.3,81235.0,81202.0,0.32484]
[1769872874812,0.3,81235.0,81208.0,0.09988]
[1769872875001,0.01233,81227.0,81202.0,0.32484]
[1769872875204,0.012327,81248.0,81202.0,0.32484]
[1769872875205,0.27851145,81262.0,81233.0,0.012329]
[1769872875409,0.37231972,81283.0,81234.0,0.09988]
[1769872875410,0.27851145,81260.0,81234.0,0.09988]
[1769872875804,0.12311253,81266.0,81234.0,0.09988]
[1769872875805,0.27851145,81258.0,81235.0,0.012329]
[1769872876109,0.27851145,81258.0,81234.0,0.09988]
[1769872877516,0.27851145,81258.0,81237.0,0.012328]
[1769872877714,0.09988,81259.0,81243.0,0.012327]
[1769872877923,0.10088,81260.0,81243.0,0.012327]
[1769872878218,0.09988,81260.0,81243.0,0.012327]
[1769872878517,0.001,81258.0,81243.0,0.012327]
[1769872879109,0.09988,81260.0,81243.0,0.012327]
[1769872879514,0.27851145,81266.0,81243.0,0.012327]
[1769872879816,0.27851145,81264.0,81243.0,0.012327]
[1769872880212,0.09988,81265.0,81207.0,0.012333]
[1769872880213,0.27851145,81236.0,81207.0,0.012333]
[1769872880412,0.27851145,81236.0,81211.0,0.012332]
[1769872880720,0.012329,81235.0,81207.0,0.012333]
[1769872880920,0.012329,81235.0,81204.0,0.09988]
[1769872880921,0.27851145,81227.0,81204.0,0.09988]
[1769872881320,0.29083945,81237.0,81211.0,0.012332]
[1769872881521,0.09988,81236.0,81211.0,0.012332]
[1769872881721,0.27851145,81234.0,81211.0,0.012332]
[1769872881921,0.27851145,81232.0,81207.0,0.012333]
[1769872882218,0.01233,81226.0,81204.0,0.09988]
[1769872882422,0.27851145,81220.0,81204.0,0.09988]
[1769872882618,0.27851145,81218.0,81204.0,0.09988]
[1769872882825,0.09988,81222.0,81197.0,0.09988]
[1769872883022,0.37839145,81222.0,81198.0,0.012334]
[1769872883224,0.27851145,81221.0,81197.0,0.09988]
[1769872883621,0.27851145,81219.0,81197.0,0.09988]
[1769872883926,0.27851145,81219.0,81197.0,0.112214]
[1769872884223,0.37839145,81219.0,81197.0,0.112214]
[1769872884426,0.09988,81218.0,81197.0,0.112214]
[1769872884619,0.37839145,81218.0,81204.0,0.001]
[1769872886128,0.37839145,81218.0,81197.0,0.112214]
[1769872886326,0.001,81219.0,81197.0,0.112214]
[1769872886530,0.001,81219.0,81198.0,0.14165876]
[1769872886726,0.001,81219.0,81205.0,0.012333]
[1769872887034,0.29083945,81236.0,81211.0,0.012332]
[1769872887216,0.09988,81237.0,81218.0,0.012331]
[1769872887422,0.012324,81266.0,81212.0,0.24153876]
[1769872887423,0.29083745,81253.0,81228.0,0.012329]
[1769872887626,0.09988,81252.0,81228.0,0.012329]
[1769872889028,0.09988,81252.0,81237.0,0.012328]
[1769872889218,0.67035145,81263.0,81240.0,0.012328]
[1769872889417,0.09988,81262.0,81240.0,0.012328]
[1769872889629,0.67035145,81263.0,81240.0,0.012328]
[1769872889630,0.27851145,81263.0,81240.0,0.012328]
[1769872889829,0.09988,81262.0,81240.0,0.012328]
[1769872890131,0.37839145,81262.0,81240.0,0.012328]
[1769872890729,0.27851145,81261.0,81240.0,0.012328]
[1769872890930,0.27851145,81258.0,81237.0,0.09988]
[1769872891132,0.29083645,81258.0,81237.0,0.09988]
[1769872891432,0.29083645,81258.0,81212.0,0.39952]
[1769872891433,0.27851145,81249.0,81215.0,0.09984]
[1769872891619,0.1230754,81257.0,81216.0,0.09984]
[1769872891620,0.27851145,81247.0,81216.0,0.09984]
[1769872891819,0.27851145,81247.0,81220.0,0.012331]
[1769872892025,0.27851145,81245.0,81220.0,0.012331]
[1769872892225,0.27851145,81245.0,81216.0,0.09984]
[1769872892427,0.09984,81246.0,81216.0,0.09984]
[1769872892428,0.27851145,81241.0,81216.0,0.09984]
[1769872892620,0.27851145,81237.0,81216.0,0.09984]
[1769872892825,0.27851145,81231.0,81206.0,0.012333]
[1769872894228,0.012328,81240.0,81206.0,0.23850555]
[1769872894434,0.27851145,81242.0,81209.0,0.23850555]
[1769872895541,0.09984,81247.0,81221.0,0.012331]
[1769872895731,0.37835145,81247.0,81221.0,0.012331]
[1769872896038,0.27851145,81244.0,81221.0,0.012331]
[1769872896840,0.27851145,81244.0,81219.0,0.09984]
[1769872897131,0.09984,81247.0,81221.0,0.24044959]
[1769872897340,0.09984,81247.0,81232.0,0.012329]
[1769872897733,0.2807847,81253.0,81232.0,0.012329]
[1769872898032,0.09984,81252.0,81232.0,0.012329]
[1769872898634,0.09984,81262.0,81234.0,0.23162851]
[1769872898828,0.2931077,81271.0,81234.0,0.23162851]
[1769872898829,0.09984,81263.0,81234.0,0.23162851]
[1769872899233,0.001,81252.0,81234.0,0.23162851]
[1769872899438,0.001,81252.0,81230.0,0.32472]
[1769872899634,0.001,81252.0,81231.0,0.23162851]
[1769872899839,0.001,81252.0,81244.0,0.012327]
[1769872900236,0.09984,81261.0,81244.0,0.012327]
[1769872901537,0.28657716,81260.0,81244.0,0.012327]
[1769872902139,0.28657716,81260.0,81247.0,0.012327]
[1769872902530,0.09984,81261.0,81250.0,0.012326]
[1769872902735,0.28657716,81279.0,81255.0,0.012325]
[1769872902939,0.38641716,81279.0,81258.0,0.012325]
[1769872903334,0.38641716,81279.0,81261.0,0.012325]
[1769872903632,0.24426278,81308.0,81256.0,0.09984]
[1769872903633,0.29889616,81297.0,81268.0,0.012323]
[1769872903840,0.28657716,81295.0,81269.0,0.09984]
[1769872904036,0.28657716,81293.0,81269.0,0.09984]
[1769872905040,0.28657716,81289.0,81261.0,0.09984]
[1769872905232,0.28657716,81287.0,81257.0,0.09984]
[1769872905432,0.28657716,81285.0,81257.0,0.09984]
[1769872905631,0.28657716,81283.0,81257.0,0.09984]
[1769872906341,0.09984,81288.0,81247.0,0.32468]
[1769872906342,0.28657716,81276.0,81250.0,0.09984]
[1769872906540,0.28657716,81274.0,81250.0,0.09984]
[1769872907947,0.28657716,81272.0,81250.0,0.09984]
[1769872909138,0.28757716,81272.0,81250.0,0.09984]
[1769872909439,0.29990016,81272.0,81250.0,0.09984]
[1769872909740,0.29890016,81272.0,81245.0,0.012327]
[1769872910527,0.29890016,81272.0,81241.0,0.012328]
[1769872911643,0.28757716,81272.0,81244.0,0.012327]
[1769872911941,0.28757716,81272.0,81247.0,0.012327]
[1769872912328,0.09984,81275.0,81250.0,0.012326]
[1769872912545,0.09984,81275.0,81251.0,0.09984]
[1769872912840,0.38641716,81275.0,81251.0,0.09984]
[1769872913138,0.28657716,81274.0,81251.0,0.09984]
[1769872914043,0.09984,81275.0,81252.0,0.29873643]
[1769872914941,0.39304,81283.0,81251.0,0.09984]
[1769872914942,0.09984,81285.0,81262.0,0.012324]
[1769872915245,0.28657716,81284.0,81263.0,0.09984]
[1769872915443,0.09984,81285.0,81252.0,0.12405647]
[1769872915444,0.28657716,81282.0,81252.0,0.22389647]
[1769872915638,0.28657716,81280.0,81252.0,0.10084]
[1769872915839,0.28657716,81280.0,81254.0,0.012326]
[1769872917350,0.28657716,81280.0,81257.0,0.012325]
[1769872921443,0.28657716,81263.0,81238.0,0.0998]
[1769872921743,0.28657716,81257.0,81238.0,0.0998]
[1769872921944,0.0998,81263.0,81229.0,0.1353779]
[1769872921945,0.28657716,81246.0,81229.0,0.11847102]
[1769872922248,0.28657716,81237.0,81217.0,0.0998]
[1769872922547,0.28657716,81237.0,81204.0,0.0998]
[1769872922750,0.28657716,81229.0,81204.0,0.0998]
[1769872922950,0.28657716,81227.0,81204.0,0.0998]
[1769872923836,0.28657716,81227.0,81187.0,0.24594078]
[1769872923837,0.28657716,81230.0,81192.0,0.0998]
[1769872924045,0.29890716,81227.0,81195.0,0.012335]
[1769872924338,0.28657716,81222.0,81192.0,0.0998]
[1769872924851,0.28657716,81219.0,81192.0,0.0998]
[1769872925049,0.28657716,81217.0,81192.0,0.0998]
[1769872925251,0.28657716,81230.0,81203.0,0.012333]
[1769872925561,0.28657716,81230.0,81202.0,0.09984]
[1769872925749,0.28657716,81230.0,81203.0,0.012333]
[1769872926351,0.28657716,81230.0,81202.0,0.09984]
[1769872926645,0.001,81222.0,81202.0,0.09984]
[1769872926851,0.28757716,81222.0,81202.0,0.09984]
[1769872927850,0.28757716,81222.0,81202.0,0.0953123]
[1769872928058,0.28657716,81222.0,81202.0,0.0953123]
[1769872930148,0.012331,81218.0,81202.0,0.0953123]
[1769872930345,0.28992028,81217.0,81201.0,8.769e-05]
[1769872931054,0.28992028,81215.0,81201.0,8.769e-05]
[1769872931854,0.30225228,81215.0,81201.0,8.769e-05]
[1769872932149,0.28992028,81215.0,81201.0,8.769e-05]
[1769872932749,0.29092028,81215.0,81201.0,8.769e-05]
[1769872935346,0.28992028,81215.0,81201.0,8.769e-05]
[1769872935546,0.29092028,81215.0,81201.0,8.769e-05]
[1769872936354,0.29092028,81215.0,81192.0,0.09984]
[1769872936355,0.28992028,81213.0,81192.0,0.09984]
[1769872936556,0.30225228,81211.0,81192.0,0.09984]
[1769872937260,0.28992028,81209.0,81192.0,0.09984]
[1769872937758,0.28992028,81207.0,81180.0,0.012337]
[1769872937957,0.28992028,81207.0,81181.0,0.09988]
[1769872938759,0.28992028,81207.0,81182.0,0.012337]
[1769872938956,0.001,81211.0,81194.0,0.012335]
[1769872939162,0.49476,81212.0,81194.0,0.012335]
[1769872939551,0.09988,81212.0,81194.0,0.012335]
[1769872940755,0.09988,81212.0,81192.0,0.09988]
[1769872940756,0.012328,81239.0,81195.0,0.012335]
[1769872940951,0.28992028,81242.0,81195.0,0.12314815]
[1769872941148,0.28992028,81229.0,81204.0,0.012333]
[1769872941360,0.28992028,81229.0,81206.0,0.012333]
[1769872941557,0.28992028,81229.0,81208.0,0.012333]
[1769872941860,0.06658995,81248.0,81207.0,0.09988]
[1769872941861,0.28992028,81227.0,81207.0,0.09988]
[1769872942249,0.28992028,81234.0,81210.0,0.012332]
[1769872942562,0.09988,81233.0,81216.0,0.012331]
[1769872943149,0.09988,81233.0,81218.0,0.012331]
[1769872943662,0.09988,81233.0,81217.0,0.09988]
[1769872943859,0.28992028,81249.0,81218.0,0.27345914]
[1769872944053,0.28992028,81249.0,81217.0,0.09988]
[1769872944054,0.012327,81248.0,81220.0,0.27345914]
[1769872944253,0.28992028,81249.0,81224.0,0.01233]
[1769872946257,0.30224628,81249.0,81220.0,0.012331]
[1769872946661,0.28992028,81249.0,81218.0,0.27345914]
[1769872946863,0.112206,81254.0,81230.0,0.27345914]
[1769872946864,0.09988,81254.0,81230.0,0.27345914]
[1769872947057,0.09988,81254.0,81230.0,0.37333914]
[1769872947258,0.38980028,81254.0,81230.0,0.37333914]
[1769872947758,0.38980028,81254.0,81230.0,0.38566814]
[1769872947964,0.28992028,81254.0,81230.0,0.38566814]
[1769872948164,0.38980028,81261.0,81232.0,0.012329]
[1769872948356,0.38980028,81260.0,81236.0,0.012328]
[1769872948565,0.28992028,81260.0,81239.0,0.012328]
[1769872948859,0.09988,81263.0,81240.0,0.09988]
[1769872948860,0.28992028,81256.0,81240.0,0.09988]
[1769872949058,0.28992028,81254.0,81241.0,0.09988]
[1769872949360,0.28992028,81254.0,81237.0,0.09988]
[1769872950666,0.28992028,81246.0,81230.0,0.001]
[1769872950859,0.28992028,81245.0,81230.0,0.001]
[1769872951063,0.28992028,81245.0,81226.0,0.09984]
[1769872951259,0.012327,81244.0,81226.0,0.09984]
[1769872951464,0.28992028,81238.0,81218.0,0.09984]
[1769872951758,0.28992028,81236.0,81218.0,0.09984]
[1769872951959,0.28992028,81234.0,81205.0,0.09984]
[1769872952161,0.28992028,81227.0,81203.0,0.09984]
[1769872952467,0.09984,81238.0,81216.0,0.27345914]
[1769872952766,0.09984,81238.0,81204.0,0.09984]
[1769872952767,0.28992028,81237.0,81209.0,0.09984]
[1769872952957,0.28992028,81237.0,81211.0,0.012332]
[1769872953358,0.28992028,81237.0,81209.0,0.09984]
[1769872954362,0.28992028,81237.0,81216.0,0.001]
[1769872955371,0.28992028,81235.0,81209.0,0.10084]
[1769872955960,0.28992028,81235.0,81209.0,0.09984]
[1769872956167,0.28992028,81235.0,81205.0,0.012333]
[1769872956467,0.28992028,81235.0,81211.0,0.012332]
[1769872956861,0.28992028,81235.0,81207.0,0.012333]
[1769872957261,0.28992028,81235.0,81210.0,0.012332]
[1769872957559,0.09984,81234.0,81223.0,0.01233]
[1769872958366,0.09984,81234.0,81215.0,0.012332]
[1769872958765,0.09984,81234.0,81223.0,0.001]
[1769872958966,0.38688637,81234.0,81223.0,0.001]
[1769872959162,0.28704637,81233.0,81223.0,0.001]
[1769872959363,0.28704637,81233.0,81212.0,0.09984]
[1769872959562,0.28704637,81233.0,81213.0,0.012332]
[1769872960769,0.28704637,81233.0,81209.0,0.012332]
[1769872961165,0.29937537,81233.0,81205.0,0.012333]
[1769872962267,0.29192793,81225.0,81190.0,0.27642792]
[1769872962472,0.29192793,81223.0,81201.0,0.012334]
[1769872962873,0.29192793,81223.0,81197.0,0.012334]
[1769872963079,0.29192793,81223.0,81200.0,0.012334]
[1769872963966,0.39948,81260.0,81250.0,0.27642792]
[1769872964270,0.09984,81259.0,81254.0,0.27642792]
[1769872964569,0.49652,81258.0,81253.0,0.012326]
[1769872964769,0.49656,81257.0,81254.0,0.012326]
[1769872964969,0.49656,81256.0,81242.0,0.14709198]
[1769872965167,0.3968,81255.0,81246.0,0.012327]
[1769872965767,0.09984,81256.0,81246.0,0.012327]
[1769872965962,0.39704,81255.0,81246.0,0.012327]
[1769872967772,0.39704,81255.0,81242.0,0.012327]
[1769872968171,0.29192793,81249.0,81216.0,0.012331]
[1769872968365,0.29192793,81243.0,81215.0,0.00012659]
[1769872968571,0.29192793,81237.0,81215.0,0.00012659]
[1769872968781,0.012328,81236.0,81215.0,0.00012659]
[1769872968984,0.012329,81234.0,81215.0,0.00012659]
[1769872969276,0.29192793,81233.0,81205.0,0.012333]
[1769872969466,0.29192793,81230.0,81201.0,0.012334]
[1769872969668,0.29192793,81228.0,81197.0,0.012334]
[1769872969870,0.29192793,81228.0,81200.0,0.012334]
[1769872970076,0.00011399,81227.0,81200.0,0.012334]
[1769872971069,0.00011399,81227.0,81182.0,0.012336]
[1769872971070,0.29192793,81217.0,81182.0,0.012336]
[1769872971271,0.29192793,81211.0,81177.0,0.012337]
[1769872971580,0.29192793,81207.0,81173.0,0.12313223]
[1769872971767,0.49928,81210.0,81173.0,0.12313223]
[1769872971768,0.29192793,81205.0,81173.0,0.12313223]
[1769872971972,0.29192793,81203.0,81172.0,0.28876592]
[1769872972284,0.00012659,81206.0,81181.0,0.27642792]
[1769872972476,0.29205452,81206.0,81173.0,0.12316939]
[1769872972780,0.42452,81205.0,81171.0,0.27642792]
[1769872972970,0.42452,81205.0,81172.0,0.12316939]
[1769872972971,0.29192793,81204.0,81172.0,0.12316939]
[1769872973174,0.29192793,81204.0,81173.0,0.012338]
[1769872973578,0.29192793,81204.0,81174.0,0.12317091]
[1769872973776,0.00012659,81206.0,81187.0,0.012336]
[1769872973980,0.49756,81205.0,81187.0,0.012336]
[1769872974380,0.00012659,81206.0,81187.0,0.012336]
[1769872974574,0.4246,81205.0,81187.0,0.012336]
[1769872975180,0.00012659,81206.0,81188.0,0.27642792]
[1769872975378,0.09988,81213.0,81200.0,0.012334]
[1769872975684,0.29192793,81218.0,81195.0,0.012334]
[1769872975981,0.39764,81212.0,81195.0,0.012334]
[1769872976283,0.4246,81211.0,81195.0,0.012334]
[1769872976481,0.49752,81210.0,81195.0,0.012334]
[1769872976675,0.49752,81210.0,81192.0,0.27642792]
[1769872976986,0.49752,81210.0,81193.0,0.12314285]
[1769872977189,0.09988,81248.0,81226.0,0.27642792]
[1769872977388,0.012321,81285.0,81201.0,0.012334]
[1769872977389,0.29192793,81283.0,81244.0,0.28875492]
[1769872977588,0.29192793,81283.0,81214.0,0.32472]
[1769872977589,0.29192793,81281.0,81252.0,0.012326]
[1769872977885,0.39952,81298.0,81240.0,0.45596679]
[1769872977886,0.29192793,81279.0,81240.0,0.45596679]
[1769872978098,0.09988,81278.0,81254.0,0.012326]
[1769872978400,0.398,81277.0,81249.0,0.27642792]
[1769872978698,0.09988,81276.0,81249.0,0.27642792]
[1769872978899,0.09988,81276.0,81251.0,0.012326]
[1769872979492,0.09988,81276.0,81252.0,0.12305647]
[1769872979894,0.29192793,81275.0,81251.0,0.012326]
[1769872980597,0.29192793,81275.0,81249.0,0.001]
[1769872980993,0.29192793,81270.0,81249.0,0.001]
[1769872981498,0.29192793,81270.0,81251.0,0.001]
[1769872982294,0.29192793,81270.0,81243.0,0.012327]
[1769872982491,0.3986,81269.0,81243.0,0.012327]
[1769872983901,0.39876,81268.0,81243.0,0.012327]
[1769872984097,0.39876,81268.0,81235.0,0.012329]
[1769872984098,0.29192793,81267.0,81235.0,0.012329]
[1769872984402,0.29192793,81265.0,81235.0,0.012329]
[1769872984993,0.29192793,81265.0,81243.0,0.001]
[1769872986803,0.29192793,81265.0,81235.0,0.012329]
[1769872987004,0.29192793,81265.0,81230.0,0.012329]
[1769872988297,0.29192793,81265.0,81231.0,0.12307692]
[1769872988498,0.29192793,81265.0,81233.0,0.012329]
[1769872989799,0.333,81264.0,81233.0,0.012329]